[Event "*** Titled Tuesday Blitz"]
[Site "Chess.com"]
[Date "2021.03.02"]
[Round "3"]
[White "dragos420"]
[Black "GCamachoMartinez"]
[Result "1-0"]
[WhiteElo "2526"]
[BlackElo "2285"]
[TimeControl "180+1"]
[EndTime "10:27:24 PST"]
[Termination "dragos420 won by resignation"]

1. e4 {[%clk 0:03:00.9]} 1... c5 {[%clk 0:02:59]} 2. Nf3 {[%clk 0:02:55.5]} 2...
d6 {[%clk 0:02:59.1]} 3. d4 {[%clk 0:02:54.7]} 3... cxd4 {[%clk 0:03:00]} 4.
Nxd4 {[%clk 0:02:54.8]} 4... Nf6 {[%clk 0:03:00.4]} 5. Nc3 {[%clk 0:02:54.3]}
5... g6 {[%clk 0:03:00.8]} 6. Be2 {[%clk 0:02:53]} 6... Bg7 {[%clk 0:03:01.2]}
7. Be3 {[%clk 0:02:53.7]} 7... O-O {[%clk 0:03:01.7]} 8. Qd2 {[%clk 0:02:54.3]}
8... Ng4 {[%clk 0:02:50.1]} 9. Bxg4 {[%clk 0:02:54.1]} 9... Bxg4 {[%clk
0:02:50.9]} 10. f3 {[%clk 0:02:55]} 10... Bd7 {[%clk 0:02:49.4]} 11. O-O-O
{[%clk 0:02:55.7]} 11... Nc6 {[%clk 0:02:49.4]} 12. h4 {[%clk 0:02:55.2]} 12...
Ne5 {[%clk 0:02:30.1]} 13. b3 {[%clk 0:02:41.3]} 13... Rc8 {[%clk 0:02:15.8]}
14. Kb1 {[%clk 0:02:39.2]} 14... e6 {[%clk 0:01:26.6]} 15. h5 {[%clk 0:02:34]}
15... Qe7 {[%clk 0:01:20.6]} 16. Bg5 {[%clk 0:02:20.8]} 16... f6 {[%clk
0:01:04.6]} 17. Be3 {[%clk 0:02:17.4]} 17... g5 {[%clk 0:00:58.7]} 18. g3 {[%clk
0:02:09.1]} 18... h6 {[%clk 0:00:57.6]} 19. f4 {[%clk 0:02:08.7]} 19... Ng4
{[%clk 0:00:57.6]} 20. Bg1 {[%clk 0:02:06.6]} 20... Bc6 {[%clk 0:00:47.5]} 21.
Qe2 {[%clk 0:01:58.2]} 21... Rc7 {[%clk 0:00:46.3]} 22. Qxg4 {[%clk 0:01:54.2]}
22... f5 {[%clk 0:00:45.3]} 23. Qe2 {[%clk 0:01:14.9]} 23... Qf6 {[%clk
0:00:22]} 24. fxg5 {[%clk 0:01:08.2]} 24... hxg5 {[%clk 0:00:19.7]} 25. h6
{[%clk 0:01:01.1]} 25... Bxh6 {[%clk 0:00:19.8]} 26. Nxc6 {[%clk 0:00:54.4]}
26... Rxc6 {[%clk 0:00:19.4]} 27. Bd4 {[%clk 0:00:55]} 27... Qg6 {[%clk
0:00:18.2]} 28. exf5 {[%clk 0:00:52.9]} 28... exf5 {[%clk 0:00:17.8]} 29. Nd5
{[%clk 0:00:50.1]} 1-0

[Event "*** Titled Tuesday Blitz"]
[Site "Chess.com"]
[Date "2021.03.02"]
[Round "3"]
[White "CSB7"]
[Black "Ghost_Pepper"]
[Result "1-0"]
[WhiteElo "2571"]
[BlackElo "2386"]
[TimeControl "180+1"]
[EndTime "10:27:26 PST"]
[Termination "CSB7 won by resignation"]

1. d4 {[%clk 0:03:00.9]} 1... Nf6 {[%clk 0:02:58.9]} 2. Nf3 {[%clk 0:03:01]}
2... g6 {[%clk 0:02:59.5]} 3. c4 {[%clk 0:03:00.2]} 3... Bg7 {[%clk 0:02:58.2]}
4. Nc3 {[%clk 0:03:00.6]} 4... d5 {[%clk 0:02:58.9]} 5. cxd5 {[%clk 0:03:01.5]}
5... Nxd5 {[%clk 0:02:59.5]} 6. e4 {[%clk 0:03:00.6]} 6... Nxc3 {[%clk 0:03:00]}
7. bxc3 {[%clk 0:03:01.5]} 7... c5 {[%clk 0:03:00.3]} 8. Bb5+ {[%clk 0:03:01.9]}
8... Bd7 {[%clk 0:02:58.9]} 9. Rb1 {[%clk 0:03:00.4]} 9... Qc7 {[%clk
0:02:54.7]} 10. O-O {[%clk 0:02:55.3]} 10... O-O {[%clk 0:02:53]} 11. Be3 {[%clk
0:02:52.6]} 11... Rd8 {[%clk 0:02:48.6]} 12. Qb3 {[%clk 0:02:45.8]} 12... Nc6
{[%clk 0:02:32.2]} 13. d5 {[%clk 0:02:37.1]} 13... Na5 {[%clk 0:02:28.7]} 14.
Qa4 {[%clk 0:01:59.8]} 14... Bg4 {[%clk 0:02:23.1]} 15. Be2 {[%clk 0:01:49.6]}
15... c4 {[%clk 0:01:47.8]} 16. Rfc1 {[%clk 0:01:32.8]} 16... e6 {[%clk
0:01:42.9]} 17. h3 {[%clk 0:01:26.5]} 17... Bxf3 {[%clk 0:01:29.7]} 18. Bxf3
{[%clk 0:01:27.4]} 18... Rac8 {[%clk 0:01:20.1]} 19. dxe6 {[%clk 0:01:10.1]}
19... fxe6 {[%clk 0:01:17.2]} 20. Bg4 {[%clk 0:01:09.2]} 20... Re8 {[%clk
0:01:15.2]} 21. Bxa7 {[%clk 0:00:38.6]} 21... Nc6 {[%clk 0:01:03.7]} 22. Bb6
{[%clk 0:00:31.2]} 22... Qf4 {[%clk 0:01:03.6]} 23. Qxc4 {[%clk 0:00:21.1]}
23... Ne5 {[%clk 0:00:56.9]} 24. Bxe6+ {[%clk 0:00:18.1]} 24... Kh8 {[%clk
0:00:57.3]} 25. Qxc8 {[%clk 0:00:18.6]} 25... Rxc8 {[%clk 0:00:56.8]} 26. Bxc8
{[%clk 0:00:19.5]} 26... Nd3 {[%clk 0:00:46.9]} 27. Rd1 {[%clk 0:00:17]} 27...
Qxf2+ {[%clk 0:00:45.9]} 28. Bxf2 {[%clk 0:00:16.3]} 1-0

[Event "*** Titled Tuesday Blitz"]
[Site "Chess.com"]
[Date "2021.03.02"]
[Round "3"]
[White "Euwe1234"]
[Black "HrvojeZagreb"]
[Result "1-0"]
[WhiteElo "2468"]
[BlackElo "2260"]
[TimeControl "180+1"]
[EndTime "10:27:27 PST"]
[Termination "Euwe1234 won by resignation"]

1. e4 {[%clk 0:03:00.9]} 1... e6 {[%clk 0:02:59.9]} 2. d4 {[%clk 0:03:00.5]}
2... d5 {[%clk 0:03:00.4]} 3. Nc3 {[%clk 0:03:00.8]} 3... dxe4 {[%clk
0:03:00.7]} 4. Nxe4 {[%clk 0:03:01.7]} 4... Nd7 {[%clk 0:03:01.1]} 5. Nf3 {[%clk
0:02:59.4]} 5... Ngf6 {[%clk 0:03:01.1]} 6. Bg5 {[%clk 0:02:54.9]} 6... Be7
{[%clk 0:03:00.6]} 7. Bxf6 {[%clk 0:02:54.9]} 7... Nxf6 {[%clk 0:03:00.2]} 8.
Bd3 {[%clk 0:02:54.6]} 8... O-O {[%clk 0:02:56.2]} 9. O-O {[%clk 0:02:50.4]}
9... Nxe4 {[%clk 0:02:51.7]} 10. Bxe4 {[%clk 0:02:49.4]} 10... c5 {[%clk
0:02:51.9]} 11. dxc5 {[%clk 0:02:40.2]} 11... Qxd1 {[%clk 0:02:50.2]} 12. Raxd1
{[%clk 0:02:39]} 12... Bxc5 {[%clk 0:02:50.7]} 13. Ne5 {[%clk 0:02:37.9]} 13...
f6 {[%clk 0:02:41]} 14. Nd7 {[%clk 0:02:35.4]} 14... Bxd7 {[%clk 0:02:35.1]} 15.
Rxd7 {[%clk 0:02:36.3]} 15... Rf7 {[%clk 0:02:06.7]} 16. Rfd1 {[%clk 0:02:34.6]}
16... Rb8 {[%clk 0:01:54.5]} 17. Rxf7 {[%clk 0:02:27.3]} 17... Kxf7 {[%clk
0:01:53.8]} 18. Rd7+ {[%clk 0:02:28.2]} 18... Kg8 {[%clk 0:01:48.2]} 19. Bxb7
{[%clk 0:02:24.6]} 19... f5 {[%clk 0:01:24.1]} 20. Kf1 {[%clk 0:02:19]} 20...
Bb6 {[%clk 0:01:20.2]} 21. c3 {[%clk 0:02:11]} 21... Rd8 {[%clk 0:01:19.6]} 22.
Rxd8+ {[%clk 0:02:09.4]} 22... Bxd8 {[%clk 0:01:20.5]} 23. Ke2 {[%clk
0:02:08.6]} 23... Kf7 {[%clk 0:01:17.8]} 24. b4 {[%clk 0:02:02.7]} 24... Bb6
{[%clk 0:01:08.7]} 25. c4 {[%clk 0:02:01.5]} 25... a5 {[%clk 0:01:04.9]} 26. c5
{[%clk 0:01:56.9]} 26... Ba7 {[%clk 0:01:04]} 27. a3 {[%clk 0:01:53.8]} 27...
Ke7 {[%clk 0:00:59.9]} 28. Kd3 {[%clk 0:01:53.3]} 28... axb4 {[%clk 0:00:57.3]}
29. axb4 {[%clk 0:01:52.4]} 29... g5 {[%clk 0:00:55.5]} 30. f3 {[%clk
0:01:48.5]} 30... h5 {[%clk 0:00:53.7]} 31. Bc8 {[%clk 0:01:47]} 31... g4 {[%clk
0:00:48.5]} 32. Kd4 {[%clk 0:01:39.9]} 32... h4 {[%clk 0:00:37]} 33. h3 {[%clk
0:01:31.7]} 33... gxh3 {[%clk 0:00:27.4]} 34. gxh3 {[%clk 0:01:29.6]} 34... Bb8
{[%clk 0:00:19]} 35. b5 {[%clk 0:01:28.3]} 35... Bg3 {[%clk 0:00:10.8]} 36. b6
{[%clk 0:01:26.8]} 36... Bf2+ {[%clk 0:00:07.8]} 37. Kc4 {[%clk 0:01:25.3]}
37... f4 {[%clk 0:00:05.8]} 38. Kb5 {[%clk 0:01:22.2]} 38... e5 {[%clk
0:00:04.1]} 39. b7 {[%clk 0:01:20.6]} 1-0

[Event "*** Titled Tuesday Blitz"]
[Site "Chess.com"]
[Date "2021.03.02"]
[Round "3"]
[White "Rud_Makarian"]
[Black "GM_LOADING"]
[Result "1-0"]
[WhiteElo "2783"]
[BlackElo "2529"]
[TimeControl "180+1"]
[EndTime "10:27:28 PST"]
[Termination "Rud_Makarian won on time"]

1. b3 {[%clk 0:03:00.9]} 1... Nf6 {[%clk 0:02:58.3]} 2. Bb2 {[%clk 0:03:01.1]}
2... d5 {[%clk 0:02:58.6]} 3. h3 {[%clk 0:03:00.3]} 3... g6 {[%clk 0:02:35.5]}
4. g4 {[%clk 0:02:58.6]} 4... Bg7 {[%clk 0:02:35.4]} 5. Bg2 {[%clk 0:02:51.7]}
5... c5 {[%clk 0:02:26.7]} 6. e3 {[%clk 0:02:50.9]} 6... Nc6 {[%clk 0:02:26]} 7.
Ne2 {[%clk 0:02:49.6]} 7... O-O {[%clk 0:02:20.8]} 8. f4 {[%clk 0:02:43]} 8...
e5 {[%clk 0:02:16.5]} 9. fxe5 {[%clk 0:02:37.9]} 9... Ne4 {[%clk 0:02:15.6]} 10.
O-O {[%clk 0:02:31]} 10... Nxe5 {[%clk 0:02:14.4]} 11. Nbc3 {[%clk 0:02:28.6]}
11... Nc6 {[%clk 0:01:37]} 12. Nxe4 {[%clk 0:02:17.7]} 12... Bxb2 {[%clk
0:01:30.2]} 13. Nxc5 {[%clk 0:02:17.7]} 13... Bxa1 {[%clk 0:01:24.4]} 14. Qxa1
{[%clk 0:02:18.6]} 14... Be6 {[%clk 0:01:20.7]} 15. Nf4 {[%clk 0:02:14.4]} 15...
Qd6 {[%clk 0:01:14.6]} 16. Nxb7 {[%clk 0:02:03.6]} 16... Qb4 {[%clk 0:01:02.9]}
17. Bxd5 {[%clk 0:02:03.7]} 17... Qxd2 {[%clk 0:00:27.6]} 18. Bxc6 {[%clk
0:01:58.6]} 18... Qxe3+ {[%clk 0:00:26.6]} 19. Kh1 {[%clk 0:01:53.3]} 19... Rac8
{[%clk 0:00:19.2]} 20. Bg2 {[%clk 0:01:53]} 20... Rxc2 {[%clk 0:00:09.8]} 21.
Qf6 {[%clk 0:01:49.7]} 21... Qg3 {[%clk 0:00:04.9]} 22. Nd6 {[%clk 0:01:46.6]}
22... Rxa2 {[%clk 0:00:04.3]} 23. Rf3 {[%clk 0:01:41.3]} 23... Qe1+ {[%clk
0:00:02]} 24. Kh2 {[%clk 0:01:41.9]} 24... Ra1 {[%clk 0:00:02.3]} 25. Rf1 {[%clk
0:01:34.4]} 25... Qxf1 {[%clk 0:00:02.8]} 26. Bxf1 {[%clk 0:01:35.3]} 26... Rxf1
{[%clk 0:00:03.4]} 27. Kg2 {[%clk 0:01:34.8]} 27... Re1 {[%clk 0:00:03.9]} 28.
Kf2 {[%clk 0:01:24.3]} 28... Rd1 {[%clk 0:00:03.4]} 29. Ne4 {[%clk 0:01:22.5]}
29... Rfd8 {[%clk 0:00:02.1]} 30. Nxe6 {[%clk 0:01:20.6]} 30... fxe6 {[%clk
0:00:02.2]} 31. Qxe6+ {[%clk 0:01:21.5]} 31... Kf8 {[%clk 0:00:02.8]} 32. Qf6+
{[%clk 0:01:18.5]} 32... Kg8 {[%clk 0:00:03]} 33. Qe7 {[%clk 0:01:19.1]} 33...
Rf8+ {[%clk 0:00:01.8]} 34. Nf6+ {[%clk 0:01:18.5]} 34... Rxf6+ {[%clk
0:00:01.3]} 35. Qxf6 {[%clk 0:01:19.4]} 35... Rd8 {[%clk 0:00:01.5]} 36. Qxd8+
{[%clk 0:01:19.1]} 1-0

[Event "*** Titled Tuesday Blitz"]
[Site "Chess.com"]
[Date "2021.03.02"]
[Round "3"]
[White "Hangar-18"]
[Black "arminmusovic"]
[Result "1-0"]
[WhiteElo "2374"]
[BlackElo "2535"]
[TimeControl "180+1"]
[EndTime "10:27:31 PST"]
[Termination "Hangar-18 won on time"]

1. c4 {[%clk 0:03:00.9]} 1... c5 {[%clk 0:02:59]} 2. Nc3 {[%clk 0:03:00.4]} 2...
Nc6 {[%clk 0:02:58.3]} 3. Nf3 {[%clk 0:03:00.5]} 3... Nf6 {[%clk 0:02:56.6]} 4.
g3 {[%clk 0:02:59.1]} 4... g6 {[%clk 0:02:56.7]} 5. Bg2 {[%clk 0:02:57.3]} 5...
Bg7 {[%clk 0:02:56.8]} 6. d4 {[%clk 0:02:55.6]} 6... cxd4 {[%clk 0:02:56.6]} 7.
Nxd4 {[%clk 0:02:56.5]} 7... O-O {[%clk 0:02:57.2]} 8. c5 {[%clk 0:02:56.5]}
8... Ng4 {[%clk 0:02:48.8]} 9. Nb3 {[%clk 0:02:45.9]} 9... b6 {[%clk 0:02:31.4]}
10. O-O {[%clk 0:02:29.6]} 10... Rb8 {[%clk 0:02:27.4]} 11. h3 {[%clk
0:02:18.2]} 11... Nge5 {[%clk 0:02:12.6]} 12. Bf4 {[%clk 0:02:17]} 12... bxc5
{[%clk 0:02:09.7]} 13. Nxc5 {[%clk 0:02:15.9]} 13... Rxb2 {[%clk 0:02:06]} 14.
Qc1 {[%clk 0:02:05.5]} 14... Nc4 {[%clk 0:01:51.9]} 15. Nd5 {[%clk 0:01:40.5]}
15... d6 {[%clk 0:01:51.8]} 16. Qxc4 {[%clk 0:01:32]} 16... dxc5 {[%clk
0:01:48.6]} 17. Rad1 {[%clk 0:01:14.5]} 17... Nd4 {[%clk 0:01:29.7]} 18. Qxc5
{[%clk 0:01:08.5]} 18... Nxe2+ {[%clk 0:01:03.1]} 19. Kh2 {[%clk 0:01:07.6]}
19... Kh8 {[%clk 0:00:52.6]} 20. Nxe7 {[%clk 0:00:54.7]} 20... Qb6 {[%clk
0:00:50]} 21. Qxb6 {[%clk 0:00:52.7]} 21... axb6 {[%clk 0:00:50.5]} 22. Nxc8
{[%clk 0:00:50.9]} 22... Nxf4 {[%clk 0:00:50.5]} 23. gxf4 {[%clk 0:00:43.1]} 1-0

[Event "*** Titled Tuesday Blitz"]
[Site "Chess.com"]
[Date "2021.03.02"]
[Round "3"]
[White "LyonBeast"]
[Black "esapunov"]
[Result "1-0"]
[WhiteElo "3113"]
[BlackElo "2711"]
[TimeControl "180+1"]
[EndTime "10:27:33 PST"]
[Termination "LyonBeast won by resignation"]

1. d4 {[%clk 0:03:00.9]} 1... Nf6 {[%clk 0:02:59.5]} 2. Bg5 {[%clk 0:02:53.3]}
2... d5 {[%clk 0:02:58.7]} 3. e3 {[%clk 0:02:48.1]} 3... c5 {[%clk 0:02:58.2]}
4. dxc5 {[%clk 0:02:47.5]} 4... e6 {[%clk 0:02:53.6]} 5. Nd2 {[%clk 0:02:45]}
5... Bxc5 {[%clk 0:02:52.2]} 6. Ngf3 {[%clk 0:02:45.4]} 6... h6 {[%clk
0:02:51.8]} 7. Bh4 {[%clk 0:02:42.3]} 7... Nc6 {[%clk 0:02:47.8]} 8. Bd3 {[%clk
0:02:35.7]} 8... O-O {[%clk 0:02:45.4]} 9. O-O {[%clk 0:02:34.4]} 9... e5 {[%clk
0:02:45]} 10. e4 {[%clk 0:02:34.6]} 10... d4 {[%clk 0:02:43.5]} 11. a3 {[%clk
0:02:28]} 11... a5 {[%clk 0:02:25.7]} 12. Nc4 {[%clk 0:02:23.9]} 12... Re8
{[%clk 0:02:23.3]} 13. Bg3 {[%clk 0:02:17.1]} 13... Nd7 {[%clk 0:02:04.1]} 14.
a4 {[%clk 0:02:11.7]} 14... Qf6 {[%clk 0:02:00.6]} 15. Nfd2 {[%clk 0:02:11.4]}
15... Nb6 {[%clk 0:01:52.6]} 16. Nxb6 {[%clk 0:02:07.2]} 16... Bxb6 {[%clk
0:01:52]} 17. f4 {[%clk 0:02:02.5]} 17... exf4 {[%clk 0:01:49.7]} 18. Bxf4
{[%clk 0:02:02.6]} 18... Qe7 {[%clk 0:01:35]} 19. Qh5 {[%clk 0:01:49.5]} 19...
Nb4 {[%clk 0:01:21.8]} 20. Bd6 {[%clk 0:01:43.7]} 20... Qd7 {[%clk 0:01:10.9]}
21. Bxb4 {[%clk 0:01:41.8]} 21... axb4 {[%clk 0:01:09.1]} 22. Bb5 {[%clk
0:01:42.3]} 22... Qe7 {[%clk 0:01:00.5]} 23. Bxe8 {[%clk 0:01:41.9]} 23... Qxe8
{[%clk 0:01:00.9]} 24. Nc4 {[%clk 0:01:40.5]} 24... Bc7 {[%clk 0:00:59.9]} 25.
Qc5 {[%clk 0:01:37.6]} 25... Qd8 {[%clk 0:00:57.7]} 26. e5 {[%clk 0:01:26.9]}
26... Be6 {[%clk 0:00:51.2]} 27. Qxb4 {[%clk 0:01:20.3]} 27... Qd5 {[%clk
0:00:43]} 28. b3 {[%clk 0:01:19.5]} 28... Rd8 {[%clk 0:00:33.7]} 29. Rad1 {[%clk
0:01:13.5]} 29... Bxe5 {[%clk 0:00:32.4]} 30. Qb5 {[%clk 0:01:10]} 30... Qxb5
{[%clk 0:00:27.8]} 31. axb5 {[%clk 0:01:10.9]} 31... Bc7 {[%clk 0:00:27.3]} 32.
b6 {[%clk 0:01:06.2]} 32... Bb8 {[%clk 0:00:25.4]} 33. Na5 {[%clk 0:01:05]}
33... Rd7 {[%clk 0:00:22.6]} 34. Rfe1 {[%clk 0:01:01.1]} 34... Bf4 {[%clk
0:00:22.5]} 35. Re4 {[%clk 0:00:57.3]} 35... Be3+ {[%clk 0:00:21.4]} 36. Rxe3
{[%clk 0:00:57.8]} 36... dxe3 {[%clk 0:00:20.6]} 37. Rxd7 {[%clk 0:00:58.7]}
37... Bxd7 {[%clk 0:00:20.8]} 38. Nxb7 {[%clk 0:00:59]} 1-0

[Event "*** Titled Tuesday Blitz"]
[Site "Chess.com"]
[Date "2021.03.02"]
[Round "3"]
[White "digilik"]
[Black "Angel_Hranitel_37"]
[Result "0-1"]
[WhiteElo "2246"]
[BlackElo "2506"]
[TimeControl "180+1"]
[EndTime "10:27:35 PST"]
[Termination "Angel_Hranitel_37 won by resignation"]

1. e4 {[%clk 0:03:00.9]} 1... d5 {[%clk 0:02:56.7]} 2. exd5 {[%clk 0:03:00.4]}
2... Qxd5 {[%clk 0:02:57.1]} 3. Nc3 {[%clk 0:03:00.7]} 3... Qd6 {[%clk
0:02:57.1]} 4. d4 {[%clk 0:03:00.5]} 4... Nf6 {[%clk 0:02:57.5]} 5. Nf3 {[%clk
0:02:58.8]} 5... Bg4 {[%clk 0:02:57.9]} 6. h3 {[%clk 0:02:56.1]} 6... Bxf3
{[%clk 0:02:53.6]} 7. Qxf3 {[%clk 0:02:57]} 7... c6 {[%clk 0:02:54.1]} 8. Be3
{[%clk 0:02:42.8]} 8... e6 {[%clk 0:02:50]} 9. g4 {[%clk 0:02:35.9]} 9... Be7
{[%clk 0:02:47.2]} 10. a3 {[%clk 0:02:24.9]} 10... Nd5 {[%clk 0:02:47.4]} 11.
Ne4 {[%clk 0:02:23.7]} 11... Qc7 {[%clk 0:02:47.5]} 12. Bd2 {[%clk 0:02:14.9]}
12... Qb6 {[%clk 0:02:46.1]} 13. O-O-O {[%clk 0:02:09]} 13... Nd7 {[%clk
0:02:33.4]} 14. c4 {[%clk 0:02:02.1]} 14... N5f6 {[%clk 0:02:32.2]} 15. Bc3
{[%clk 0:01:36.3]} 15... Nxe4 {[%clk 0:02:23.4]} 16. Qxe4 {[%clk 0:01:37.2]}
16... Qb3 {[%clk 0:02:23.5]} 17. f4 {[%clk 0:01:05.5]} 17... Bxa3 {[%clk
0:02:20.4]} 18. Rd3 {[%clk 0:00:58.2]} 18... Bb4 {[%clk 0:01:47.3]} 19. f5
{[%clk 0:00:47.4]} 19... O-O-O {[%clk 0:01:41.1]} 20. fxe6 {[%clk 0:00:36.2]}
20... fxe6 {[%clk 0:01:41.7]} 21. Bxb4 {[%clk 0:00:20.2]} 21... Qxb4 {[%clk
0:01:42.6]} 22. Rc3 {[%clk 0:00:17.3]} 22... Qa4 {[%clk 0:01:39.5]} 23. Bg2
{[%clk 0:00:12.9]} 23... Rhf8 {[%clk 0:01:33.4]} 24. Kb1 {[%clk 0:00:12.4]}
24... e5 {[%clk 0:01:18.6]} 25. dxe5 {[%clk 0:00:03.6]} 25... Nc5 {[%clk
0:01:19]} 26. Qc2 {[%clk 0:00:03.9]} 26... Qxc2+ {[%clk 0:01:19.2]} 27. Rxc2
{[%clk 0:00:04.8]} 27... Nd3 {[%clk 0:01:18.5]} 28. Rd1 {[%clk 0:00:04.7]} 28...
Nxe5 {[%clk 0:01:17.8]} 29. Rxd8+ {[%clk 0:00:03.6]} 29... Rxd8 {[%clk
0:01:18.7]} 30. Re2 {[%clk 0:00:04.1]} 30... Nxc4 {[%clk 0:01:19.1]} 31. Re7
{[%clk 0:00:04.7]} 31... Rd7 {[%clk 0:01:19.6]} 32. Re8+ {[%clk 0:00:04.6]}
32... Kc7 {[%clk 0:01:19.8]} 33. Rg8 {[%clk 0:00:05.1]} 33... Nd2+ {[%clk
0:01:20.7]} 34. Kc2 {[%clk 0:00:04.3]} 34... Nc4 {[%clk 0:01:21.6]} 35. Be4
{[%clk 0:00:04.3]} 35... h6 {[%clk 0:01:17.8]} 36. Bd3 {[%clk 0:00:04.7]} 36...
Ne5 {[%clk 0:01:16.3]} 37. Re8 {[%clk 0:00:04.4]} 37... Nxd3 {[%clk 0:01:16]}
0-1

[Event "*** Titled Tuesday Blitz"]
[Site "Chess.com"]
[Date "2021.03.02"]
[Round "3"]
[White "Piacramling"]
[Black "j2806"]
[Result "0-1"]
[WhiteElo "2291"]
[BlackElo "2081"]
[TimeControl "180+1"]
[EndTime "10:27:36 PST"]
[Termination "j2806 won by checkmate"]

1. d4 {[%clk 0:02:58.6]} 1... Nf6 {[%clk 0:02:48.2]} 2. Nf3 {[%clk 0:02:57.4]}
2... e6 {[%clk 0:02:48.2]} 3. g3 {[%clk 0:02:52.7]} 3... d5 {[%clk 0:02:48.6]}
4. Bg2 {[%clk 0:02:52.5]} 4... c5 {[%clk 0:02:47.9]} 5. O-O {[%clk 0:02:47.7]}
5... Nc6 {[%clk 0:02:44.9]} 6. c4 {[%clk 0:02:46.6]} 6... b6 {[%clk 0:02:35.4]}
7. cxd5 {[%clk 0:01:44.6]} 7... exd5 {[%clk 0:02:34]} 8. Nc3 {[%clk 0:01:41]}
8... Bb7 {[%clk 0:02:22.8]} 9. Bg5 {[%clk 0:01:38.3]} 9... Be7 {[%clk
0:02:22.9]} 10. dxc5 {[%clk 0:01:32.8]} 10... bxc5 {[%clk 0:02:17.5]} 11. Bxf6
{[%clk 0:01:28.5]} 11... Bxf6 {[%clk 0:02:16.6]} 12. Nxd5 {[%clk 0:01:28.2]}
12... O-O {[%clk 0:02:12]} 13. Nxf6+ {[%clk 0:01:21.7]} 13... Qxf6 {[%clk
0:02:12.1]} 14. Qc2 {[%clk 0:01:05.1]} 14... Qe7 {[%clk 0:02:05.7]} 15. Rac1
{[%clk 0:00:57.8]} 15... Rac8 {[%clk 0:01:55.2]} 16. Qxc5 {[%clk 0:00:31.2]}
16... Qxe2 {[%clk 0:01:54.1]} 17. Rfe1 {[%clk 0:00:25.8]} 17... Qa6 {[%clk
0:01:51.7]} 18. Bf1 {[%clk 0:00:18.5]} 18... Qxa2 {[%clk 0:01:49.7]} 19. Ra1
{[%clk 0:00:17.5]} 19... Qb3 {[%clk 0:01:42.2]} 20. Nd2 {[%clk 0:00:14.9]} 20...
Qxb2 {[%clk 0:01:35.2]} 21. Nc4 {[%clk 0:00:14.8]} 21... Qc3 {[%clk 0:01:24.4]}
22. Rac1 {[%clk 0:00:14.8]} 22... Qf6 {[%clk 0:01:23.4]} 23. Nd6 {[%clk
0:00:14.3]} 23... Nd4 {[%clk 0:01:14.6]} 24. Nxc8 {[%clk 0:00:14.1]} 24... Nf3+
{[%clk 0:01:11.1]} 25. Kh1 {[%clk 0:00:13]} 25... Nxe1+ {[%clk 0:01:10.4]} 26.
Kg1 {[%clk 0:00:12.9]} 26... Qf3 {[%clk 0:00:57.9]} 27. Ne7+ {[%clk 0:00:12.6]}
27... Kh8 {[%clk 0:00:57.8]} 28. Nc6 {[%clk 0:00:11.1]} 28... Rc8 {[%clk
0:00:50.6]} 29. Qe7 {[%clk 0:00:09.2]} 29... Bxc6 {[%clk 0:00:46]} 30. Rc5
{[%clk 0:00:05.7]} 30... Qh1# {[%clk 0:00:45.9]} 0-1

[Event "*** Titled Tuesday Blitz"]
[Site "Chess.com"]
[Date "2021.03.02"]
[Round "3"]
[White "ErikRonka"]
[Black "Fiona"]
[Result "1-0"]
[WhiteElo "2469"]
[BlackElo "2259"]
[TimeControl "180+1"]
[EndTime "10:27:38 PST"]
[Termination "ErikRonka won on time"]

1. e4 {[%clk 0:03:00.9]} 1... e5 {[%clk 0:02:59]} 2. Nc3 {[%clk 0:03:00.9]} 2...
Nf6 {[%clk 0:02:58.4]} 3. Bc4 {[%clk 0:03:01.4]} 3... Bc5 {[%clk 0:02:58.5]} 4.
f4 {[%clk 0:03:00.7]} 4... d6 {[%clk 0:02:57.9]} 5. Nf3 {[%clk 0:03:00.6]} 5...
Nc6 {[%clk 0:02:57.7]} 6. d3 {[%clk 0:03:00.8]} 6... Bg4 {[%clk 0:02:56.9]} 7.
Na4 {[%clk 0:03:00.6]} 7... Qe7 {[%clk 0:02:47.1]} 8. Nxc5 {[%clk 0:02:59.7]}
8... dxc5 {[%clk 0:02:48]} 9. Bb5 {[%clk 0:02:48.2]} 9... O-O {[%clk 0:02:18.7]}
10. Bxc6 {[%clk 0:02:46.8]} 10... bxc6 {[%clk 0:02:19.6]} 11. b3 {[%clk
0:02:35.6]} 11... Nd7 {[%clk 0:01:42.2]} 12. O-O {[%clk 0:02:31.1]} 12... a5
{[%clk 0:01:34.8]} 13. h3 {[%clk 0:02:23.9]} 13... Bh5 {[%clk 0:01:29.7]} 14. g4
{[%clk 0:02:19.6]} 14... exf4 {[%clk 0:01:10.1]} 15. gxh5 {[%clk 0:02:16.8]}
15... Qf6 {[%clk 0:01:10.4]} 16. Bd2 {[%clk 0:02:06.3]} 16... a4 {[%clk
0:01:01.7]} 17. Kh2 {[%clk 0:02:00.4]} 17... axb3 {[%clk 0:00:56.9]} 18. axb3
{[%clk 0:01:59.9]} 18... Rxa1 {[%clk 0:00:41.8]} 19. Qxa1 {[%clk 0:01:59]} 19...
Qh6 {[%clk 0:00:42.7]} 20. Rg1 {[%clk 0:01:51.1]} 20... f6 {[%clk 0:00:27.7]}
21. Qf1 {[%clk 0:01:22.4]} 21... Ra8 {[%clk 0:00:20]} 22. Rg2 {[%clk 0:01:02.9]}
22... Nf8 {[%clk 0:00:13.4]} 23. Nh4 {[%clk 0:00:47.9]} 23... Ne6 {[%clk
0:00:09]} 24. Nf5 {[%clk 0:00:48.2]} 24... Qxh5 {[%clk 0:00:06.8]} 25. Bxf4
{[%clk 0:00:48]} 25... Ra2 {[%clk 0:00:03.6]} 26. Be3 {[%clk 0:00:41.9]} 1-0

[Event "*** Titled Tuesday Blitz"]
[Site "Chess.com"]
[Date "2021.03.02"]
[Round "3"]
[White "Romadk"]
[Black "Szparu"]
[Result "0-1"]
[WhiteElo "2420"]
[BlackElo "2651"]
[TimeControl "180+1"]
[EndTime "10:27:39 PST"]
[Termination "Szparu won by checkmate"]

1. d4 {[%clk 0:03:00.9]} 1... Nf6 {[%clk 0:02:54.2]} 2. Nf3 {[%clk 0:02:59.4]}
2... g6 {[%clk 0:02:52.3]} 3. c4 {[%clk 0:02:58.5]} 3... Bg7 {[%clk 0:02:52.2]}
4. Nc3 {[%clk 0:02:59.4]} 4... O-O {[%clk 0:02:49.7]} 5. Bg5 {[%clk 0:02:58.9]}
5... d6 {[%clk 0:02:47.5]} 6. e3 {[%clk 0:02:59.2]} 6... c5 {[%clk 0:02:46.8]}
7. d5 {[%clk 0:02:58.7]} 7... e6 {[%clk 0:02:41.1]} 8. dxe6 {[%clk 0:02:53.7]}
8... Bxe6 {[%clk 0:02:41]} 9. Bf4 {[%clk 0:02:49.9]} 9... d5 {[%clk 0:02:26.5]}
10. Ng5 {[%clk 0:02:48.2]} 10... d4 {[%clk 0:02:21.6]} 11. Nxe6 {[%clk
0:02:47.6]} 11... fxe6 {[%clk 0:02:21.4]} 12. Nb5 {[%clk 0:02:40.6]} 12... Nc6
{[%clk 0:02:14.9]} 13. Bc7 {[%clk 0:02:22.9]} 13... Qd7 {[%clk 0:01:50.5]} 14.
Bd6 {[%clk 0:02:22.2]} 14... dxe3 {[%clk 0:01:44.8]} 15. Bxf8 {[%clk 0:01:55.7]}
15... exf2+ {[%clk 0:01:44.9]} 16. Kxf2 {[%clk 0:01:55.1]} 16... Rxf8 {[%clk
0:01:09]} 17. Qxd7 {[%clk 0:01:54]} 17... Nxd7+ {[%clk 0:01:09.9]} 18. Ke1
{[%clk 0:01:50.4]} 18... Bxb2 {[%clk 0:01:09.1]} 19. Rb1 {[%clk 0:01:47.7]}
19... Be5 {[%clk 0:01:04.9]} 20. Be2 {[%clk 0:01:37.4]} 20... a6 {[%clk
0:01:03.5]} 21. Na3 {[%clk 0:01:35.8]} 21... Bc3+ {[%clk 0:01:03.5]} 22. Kd1
{[%clk 0:01:34.9]} 22... Nde5 {[%clk 0:01:00.9]} 23. Rxb7 {[%clk 0:01:17.7]}
23... Rd8+ {[%clk 0:00:57.1]} 24. Kc1 {[%clk 0:01:14.3]} 24... Rd2 {[%clk
0:00:55.2]} 25. Bf3 {[%clk 0:01:09]} 25... Nd3+ {[%clk 0:00:39.4]} 26. Kb1
{[%clk 0:01:06.8]} 26... Ncb4 {[%clk 0:00:40]} 27. Rd1 {[%clk 0:00:19]} 27...
Rb2+ {[%clk 0:00:38.4]} 28. Ka1 {[%clk 0:00:17.1]} 28... Rb3# {[%clk 0:00:31.6]}
0-1